fUST/lending_fUST_20250610
["ID","MTS","AMOUNT","RATE_DAILY","PERIOD"]
[365255416,1749565849690,-5000.0,0.00023526,2]
[365255418,1749565849699,-974.943851,0.00023561,7]
[365255420,1749565849709,-974.943851,0.00023561,7]
[365255422,1749565849718,-151.0,0.00023561,7]
[365255424,1749565849727,-249.439354,0.00023561,7]
[365255426,1749565849736,-249.439354,0.00023561,7]
[365255428,1749565849745,-151.0,0.00023561,7]
[365255430,1749565849755,-190.579196,0.00023561,7]
[365255432,1749565849765,-190.579196,0.00023561,7]
[365255434,1749565849774,-498.18,0.00023561,4]
[365255436,1749565849784,-503.89,0.00023561,4]
[365255438,1749565849794,-1938.36,0.00023561,4]
[365255440,1749565849805,-1001.3,0.00023561,4]
[365255442,1749565849814,-1249.35,0.00023561,4]
[365255444,1749565849823,-586.98,0.00023561,4]
[365255446,1749565849833,-714.05,0.00023561,4]
[365255448,1749565849846,-709.43,0.00023561,4]
[365255450,1749565849855,-460.0,0.00023561,4]
[365255452,1749565849864,-859.52,0.00023561,4]
[365255454,1749565849873,-460.0,0.00023561,4]
[365255456,1749565849883,-580.12,0.00023561,4]
[365255458,1749565849892,-1947.23,0.00023561,4]
[365255460,1749565849903,-460.0,0.00023561,4]
[365255462,1749565849912,-460.0,0.00023561,4]
[365255464,1749565849923,-460.0,0.00023561,4]
[365255466,1749565849932,-557.62,0.00023561,4]
[365255468,1749565849941,-630.36,0.00023561,4]
[365255470,1749565849951,-740.04,0.00023561,4]
[365255472,1749565849960,-460.0,0.00023561,4]
[365255474,1749565849969,-460.0,0.00023561,4]
[365255476,1749565849979,-1210.83,0.00023561,4]
[365255478,1749565849988,-1221.46,0.00023561,4]
[365255480,1749565849998,-781.53,0.00023561,4]
[365255482,1749565850007,-460.0,0.00023561,4]
[365255484,1749565850017,-460.0,0.00023561,4]
[365255486,1749565850026,-460.0,0.00023561,4]
[365255488,1749565850036,-460.0,0.00023561,4]
[365255490,1749565850045,-1759.63,0.00023561,4]
[365255492,1749565850056,-460.0,0.00023561,4]
[365255494,1749565850065,-1099.88,0.00023561,4]
[365255496,1749565850075,-2547.43,0.00023561,4]
[365255498,1749565850084,-330.0,0.00023561,4]
[365255500,1749565850094,-617.61,0.00023561,2]
[365255502,1749565850104,-535.6,0.00023561,4]
[365255504,1749565850113,-1797.44,0.00023561,4]
[365255506,1749565850123,-695.62,0.00023561,4]
[365255508,1749565850133,-460.0,0.00023561,4]
[365255510,1749565850143,-460.0,0.00023561,4]
[365255512,1749565850152,-460.0,0.00023561,4]
[365255514,1749565850161,-151.0,0.00023568,7]
[365255516,1749565850170,-151.0,0.00023568,7]
[365255518,1749565850180,-236.421445,0.00023568,7]
[365255520,1749565850190,-236.421445,0.00023568,7]
[365255522,1749565850199,-151.0,0.00023568,7]
[365255524,1749565850209,-500.0,0.000236,2]
[365255526,1749565850218,-3000.0,0.00023613,7]
[365255528,1749565850228,-491.71359854,0.00023659,9]
[365255530,1749565850237,-311.4322408,0.00023726,2]
[365255532,1749565850247,-1090.0,0.00023731,2]
[365255534,1749565850257,-491.71359854,0.00023797,9]
[365255536,1749565850266,-2557.7,0.000238,7]
[365255538,1749565850275,-1500.0,0.00023805,2]
[365255540,1749565850286,-498.18,0.00023835,4]
[365255542,1749565850296,-503.89,0.00023835,4]
[365255544,1749565850308,-1938.36,0.00023835,4]
[365255546,1749565850318,-1001.3,0.00023835,4]
[365255548,1749565850327,-1249.35,0.00023835,4]
[365255550,1749565850337,-586.98,0.00023835,4]
[365255552,1749565850346,-714.05,0.00023835,4]
[365255554,1749565850355,-709.43,0.00023835,4]
[365255556,1749565850365,-460.0,0.00023835,4]
[365255558,1749565850375,-859.52,0.00023835,4]
[365255560,1749565850384,-460.0,0.00023835,4]
[365255562,1749565850394,-580.12,0.00023835,4]
[365255565,1749565850404,-1947.23,0.00023835,4]
[365255566,1749565850415,-460.0,0.00023835,4]
[365255569,1749565850424,-537.9347609,0.00023835,4]
[365255571,1749565850434,-460.0,0.00023835,4]
[365255573,1749565850443,-557.62,0.00023835,4]
[365255575,1749565850453,-630.36,0.00023835,4]
[365255577,1749565850462,-740.04,0.00023835,4]
[365255578,1749565850471,-529.67989397,0.00023835,4]
[365255581,1749565850481,-460.0,0.00023835,4]
[365255583,1749565850491,-1210.83,0.00023835,4]
[365255585,1749565850500,-1221.46,0.00023835,4]
[365255587,1749565850510,-781.53,0.00023835,4]
[365255589,1749565850520,-460.0,0.00023835,4]
[365255591,1749565850529,-460.0,0.00023835,4]
[365255593,1749565850538,-460.0,0.00023835,4]
[365255595,1749565850548,-460.0,0.00023835,4]
[365255597,1749565850558,-1759.63,0.00023835,4]
[365255599,1749565850568,-460.0,0.00023835,4]
[365255601,1749565850577,-1099.88,0.00023835,4]
[365255603,1749565850587,-2547.43,0.00023835,4]
[365255604,1749565850596,-617.61,0.00023835,2]
[365255606,1749565850606,-535.6,0.00023835,4]
[365255609,1749565850618,-1797.44,0.00023835,4]
[365255611,1749565850628,-695.62,0.00023835,4]
[365255613,1749565850637,-460.0,0.00023835,4]
[365255614,1749565850647,-460.0,0.00023835,4]
[365255616,1749565850657,-460.0,0.00023835,4]
[365255618,1749565850666,-1090.0,0.00023847,2]
[365255620,1749565850676,-364.9974737,0.00023863,2]
[365255622,1749565850686,-364.9974737,0.00023863,2]
[365255624,1749565850696,-364.9974737,0.00023863,2]
[365255627,1749565850706,-364.9974737,0.00023863,2]
[365255629,1749565850715,-364.9974737,0.00023863,2]
[365255631,1749565850725,-364.9974737,0.00023863,2]
[365255633,1749565850735,-364.9974737,0.00023863,2]
[365255634,1749565850744,-364.9974737,0.00023863,2]
[365255636,1749565850753,-364.9974737,0.00023863,2]
[365255638,1749565850763,-364.9974737,0.00023863,2]
[365255641,1749565850772,-370.9871059,0.00023863,2]
[365255643,1749565850782,-364.9974737,0.0002389,2]
[365255644,1749565850791,-1514.04,0.000239,7]
[365255646,1749565850803,-1812.17805154,0.00023908,2]
[365255648,1749565850812,-491.71359854,0.00023934,10]
[365255651,1749565850822,-150.26414524,0.00023973,2]
[365255652,1749565850831,-500.0,0.00023973,2]
[365255655,1749565850844,-258.52074538,0.00023973,2]
[365255657,1749565850854,-177.84780123,0.00023973,2]
[365255659,1749565850863,-500.0,0.00023973,2]
[365255661,1749565850874,-160.07517388,0.00023973,2]
[365255663,1749565850884,-562.74902061,0.00023973,2]
[365255665,1749565850894,-500.0,0.00023973,2]
[365255667,1749565850903,-500.0,0.00023973,2]
[365255669,1749565850913,-500.0,0.00023973,2]
[365255671,1749565850923,-600.0,0.00023973,2]
[365255673,1749565850933,-49144.16886863,0.00024,7]
[365255675,1749565850942,-32911.0,0.00024,7]
[365255677,1749565850951,-151.0,0.00024,7]
[365255678,1749565850960,-151.0,0.00024,7]
[365255680,1749565850970,-259.081395,0.00024,7]
[365255683,1749565850979,-151.0,0.00024,7]
[365255684,1749565850989,-151.0,0.00024,7]
[365255686,1749565850999,-229.6792923,0.00024,7]
[365255689,1749565851009,-151.0,0.00024,7]
[365255691,1749565851019,-151.0,0.00024,7]
[365255693,1749565851028,-151.0,0.00024,7]
[365255695,1749565851037,-151.0,0.00024,7]
[365255696,1749565851046,-974.943851,0.00024,7]
[365255699,1749565851058,-974.943851,0.00024,7]
[365255701,1749565851067,-154.49391211,0.00024,3]
[365255703,1749565851077,-316.0,0.00024,3]
[365255705,1749565851086,-316.0,0.00024,3]
[365255707,1749565851096,-316.0,0.00024,3]
[365255709,1749565851105,-321.92293093,0.00024,3]
[365255711,1749565851114,-65585.07220421,0.00024,2]
[365255723,1749565851215,-820.95779579,0.00024,2]
[365255725,1749565851225,-249.439354,0.00024,7]
[365255727,1749565851235,-303.96232,0.00024,7]
[365255729,1749565851245,-303.96232,0.00024,7]
[365255731,1749565851255,-249.439354,0.00024,7]
[365255733,1749565851264,-303.96232,0.00024,7]
[365255735,1749565851273,-303.96232,0.00024,7]
[365255737,1749565851283,-151.0,0.00024,7]
[365255739,1749565851292,-151.0,0.00024,7]
[365255741,1749565851302,-236.421445,0.00024,7]
[365255743,1749565851312,-236.421445,0.00024,7]
[365255745,1749565851322,-1744.0,0.00024,3]
[365255747,1749565851331,-1744.0,0.00024,3]
[365255749,1749565851340,-1744.0,0.00024,3]
[365255751,1749565851350,-1744.0,0.00024,3]
[365255753,1749565851359,-164.6613268,0.00024,3]
[365255755,1749565851369,-1744.0,0.00024,3]
[365255757,1749565851378,-1744.0,0.00024,3]
[365255759,1749565851388,-1744.0,0.00024,3]
[365255761,1749565851398,-1744.0,0.00024,3]
[365255762,1749565851408,-1744.0,0.00024,3]
[365255763,1749565851418,-1744.0,0.00024,3]
[365255764,1749565851429,-1744.0,0.00024,3]
[365255765,1749565851439,-1744.0,0.00024,3]
[365255767,1749565851448,-1744.0,0.00024,3]
[365255769,1749565851458,-1744.0,0.00024,3]
[365255771,1749565851467,-1744.0,0.00024,3]
[365255773,1749565851476,-190.579196,0.00024,7]
[365255775,1749565851486,-1744.0,0.00024,3]
[365255777,1749565851495,-1744.0,0.00024,3]
[365255779,1749565851504,-1744.0,0.00024,3]
[365255781,1749565851514,-1744.0,0.00024,3]
[365255783,1749565851524,-1744.0,0.00024,3]
[365255785,1749565851533,-1744.0,0.00024,3]
[365255787,1749565851543,-1744.0,0.00024,3]
[365255788,1749565851552,-151.0,0.00024,7]
[365255791,1749565851562,-190.579196,0.00024,7]
[365255792,1749565851571,-187.0,0.00024,7]
[365255794,1749565851581,-530.076542,0.00024,7]
[365255796,1749565851592,-530.076542,0.00024,7]
[365255798,1749565851602,-530.076542,0.00024,7]
[365255800,1749565851611,-530.076542,0.00024,7]
[365255803,1749565851622,-160.0,0.00024,3]
[365255805,1749565851632,-160.0,0.00024,7]
[365255807,1749565851642,-424.12530924,0.00024,3]
[365255809,1749565851651,-28656.61673911,0.00024,60]
[365255811,1749565851661,-151.0,0.00024,7]
[365255813,1749565851671,-842.5625,0.00024,3]
[365255815,1749565851683,-834.50537533,0.00024,3]
[365255817,1749565851693,-151.0,0.00024,7]
[365255819,1749565851703,-8552.17114455,0.00024,3]
[365255821,1749565851712,-176.7524085,0.00024027,2]
[365255823,1749565851722,-158.6873432,0.00024027,2]
[365255825,1749565851732,-12184.84,0.00024066,11]
[365255827,1749565851743,-491.71359854,0.00024072,10]
[365255829,1749565851753,-5000.0,0.00024074,2]
[365255831,1749565851762,-2000.0,0.000241,2]
[365255834,1749565851772,-2000.0,0.000241,2]
[365255836,1749565851782,-1090.0,0.00024102,2]
[365255838,1749565851791,-151.0,0.00024109,7]
[365255840,1749565851802,-151.0,0.00024109,7]
[365255842,1749565851812,-974.943851,0.00024109,7]
[365255844,1749565851822,-974.943851,0.00024109,7]
[365255846,1749565851831,-249.439354,0.00024109,7]
[365255848,1749565851842,-249.439354,0.00024109,7]
[365255850,1749565851852,-236.421445,0.00024109,7]
[365255852,1749565851862,-236.421445,0.00024109,7]
[365255854,1749565851871,-190.579196,0.00024109,7]
[365255856,1749565851880,-151.0,0.00024109,7]
[365255858,1749565851891,-190.579196,0.00024109,7]
[365255860,1749565851900,-498.18,0.00024109,4]
[365255862,1749565851910,-503.89,0.00024109,4]
[365255864,1749565851920,-1938.36,0.00024109,4]
[365255866,1749565851930,-1001.3,0.00024109,4]
[365255868,1749565851940,-1249.35,0.00024109,4]
[365255870,1749565851950,-586.98,0.00024109,4]
[365255872,1749565851959,-714.05,0.00024109,4]
[365255874,1749565851969,-709.43,0.00024109,4]
[365255876,1749565851979,-460.0,0.00024109,4]
[365255878,1749565851990,-859.52,0.00024109,4]
[365255881,1749565852000,-460.0,0.00024109,4]
[365255883,1749565852010,-547.39690117,0.00024109,4]
[365255885,1749565852023,-32.72309883,0.00024109,4]
[365255887,1749565852033,-482.27690117,0.00024109,4]
[365255890,1749565852056,-460.0,0.00021643,4]
[365255893,1749565852067,-1464.95309883,0.00024109,4]
[365255895,1749565852077,-460.0,0.00024109,4]
[365255897,1749565852087,-202.26,0.00024109,4]
[365255899,1749565852097,-557.62,0.00024109,4]
[365255901,1749565852106,-630.36,0.00024109,4]
[365255903,1749565852115,-740.04,0.00024109,4]
[365255905,1749565852125,-460.0,0.00024109,4]
[365255907,1749565852136,-1210.83,0.00024109,4]
[365255909,1749565852146,-1221.46,0.00024109,4]
[365255924,1749565852273,-781.53,0.00024109,4]
[365255926,1749565852283,-460.0,0.00024109,4]
[365255928,1749565852292,-460.0,0.00024109,4]
[365255930,1749565852302,-460.0,0.00024109,4]
[365255932,1749565852312,-460.0,0.00024109,4]
[365255934,1749565852322,-1759.63,0.00024109,4]
[365255936,1749565852331,-460.0,0.00024109,4]
[365255938,1749565852341,-1099.88,0.00024109,4]
[365255940,1749565852351,-60.59519109,0.00024109,4]
[365255961,1749565852538,-460.0,0.00021095,4]
[365255963,1749565852547,-316.01161659,0.00021095,4]
[365255965,1749565852558,-460.0,0.00021095,4]
[365255967,1749565852568,-460.0,0.00021095,4]
[365255969,1749565852577,-420.0,0.00021369,4]
[365255971,1749565852587,-460.0,0.00021369,4]
[365255973,1749565852597,-436.73886677,0.00021369,4]
[365255975,1749565852606,-460.0,0.00021643,4]
[365255977,1749565852616,-460.0,0.00021917,4]
[365255979,1749565852626,-460.0,0.00021917,4]
[365255981,1749565852635,-400.0,0.00022191,4]
[365255983,1749565852645,-248.29,0.00022191,4]
[365255985,1749565852655,-500.0,0.000225,2]
[365255987,1749565852665,-2486.83480891,0.00024109,4]
[365255989,1749565852675,-617.61,0.00024109,2]
[365255991,1749565852684,-535.6,0.00024109,4]
[365255993,1749565852694,-1797.44,0.00024109,4]
[365255995,1749565852705,-695.62,0.00024109,4]
[365255997,1749565852714,-460.0,0.00024109,4]
[365255999,1749565852724,-460.0,0.00024109,4]
[365256001,1749565852734,-205.97,0.00024109,4]
[365256003,1749565852744,-1000.0,0.00024148,2]
[365256005,1749565852753,-1000.0,0.00024162,2]
[365256007,1749565852762,-3840.74533756,0.000242,7]
[365256009,1749565852774,-2535.73529757,0.000242,7]
[365256011,1749565852811,334.780408,0.00013699,2]
[365256402,1749566966146,330.326311,0.00013699,2]
[365256466,1749567031992,-2025.53529167,0.000189,2]
[365256492,1749567032183,-300.0,0.00019646,2]
[365256494,1749567032192,-300.0,0.00019646,2]
[365256496,1749567032202,-300.0,0.00019646,2]
[365256498,1749567032211,-1200.0,0.00019646,2]
[365256500,1749567032220,-16634.288794,0.00019647,2]
[365256502,1749567032232,-8265.711206,0.00019647,2]
[365256504,1749567032243,-800.0,0.00019778,2]
[365256505,1749567032255,-208.083124,0.00019889,2]
[365256507,1749567032264,-184.26541,0.00019943,2]
[365256509,1749567032273,-330.326311,0.00020187,2]
[365256511,1749567032283,-50000.0,0.00020287,2]
[365256513,1749567032292,-224.3245317,0.00020287,2]
[365256515,1749567032302,-1076.32,0.0002052,2]
[365256516,1749567032311,-690.89245291,0.000209,4]
[365256518,1749567032320,-429.57,0.0002099,10]
[365256520,1749567032331,-298.31,0.0002099,10]
[365256522,1749567032341,-164.199,0.00020997,2]
[365256524,1749567032351,-300.0,0.00020998,2]
[365256526,1749567032360,-35856.1835143,0.00021,5]
[365256528,1749567032369,-1514.05,0.00021,2]
[365256530,1749567032378,-690.89245283,0.00021038,4]
[365256532,1749567032387,-500.0,0.00021073,2]
[365256534,1749567032397,-211.69068759,0.00021073,2]
[365256536,1749567032407,-357.98,0.00021085,10]
[365256538,1749567032417,-500.0,0.00021094,2]
[365256540,1749567032426,-500.0,0.00021094,2]
[365256542,1749567032436,-419.94862976,0.00021094,2]
[365256544,1749567032445,-500.0,0.00021094,2]
[365256546,1749567032454,-500.0,0.00021094,2]
[365256548,1749567032463,-500.0,0.00021094,2]
[365256550,1749567032472,-500.0,0.00021094,2]
[365256552,1749567032482,-500.0,0.00021094,2]
[365256554,1749567032494,-515.50290627,0.00021094,2]
[365256557,1749567032508,-500.0,0.00021094,2]
[365256558,1749567032519,-500.0,0.00021094,2]
[365256560,1749567032529,-500.0,0.00021094,2]
[365256562,1749567032538,-500.0,0.00021094,2]
[365256564,1749567032547,-500.0,0.00021094,2]
[365256566,1749567032557,-623.97260795,0.00021094,2]
[365256568,1749567032566,-500.0,0.00021094,2]
[365256569,1749567032576,-500.0,0.00021094,2]
[365256570,1749567032585,-500.0,0.00021094,2]
[365256571,1749567032595,-500.0,0.00021094,2]
[365256572,1749567032604,-499.38169526,0.00021094,2]
[365256573,1749567032614,-500.0,0.00021094,2]
[365256574,1749567032624,-500.0,0.00021094,2]
[365256575,1749567032633,-322.5,0.00021094,2]
[365256576,1749567032644,-500.0,0.00021094,2]
[365256577,1749567032654,-594.75073353,0.00021094,2]
[365256578,1749567032663,-219.37832437,0.00021094,2]
[365256579,1749567032673,-333.50923779,0.00021094,2]
[365256580,1749567032684,-500.0,0.00021094,2]
[365256581,1749567032694,-500.0,0.00021094,2]
[365256582,1749567032703,-500.0,0.00021094,2]
[365256583,1749567032713,-500.0,0.00021094,2]
[365256584,1749567032723,-500.0,0.00021094,2]
[365256585,1749567032733,-500.0,0.00021094,2]
[365256586,1749567032743,-500.0,0.00021094,2]
[365256587,1749567032753,-500.0,0.00021094,2]
[365256588,1749567032763,-500.0,0.00021094,2]
[365256589,1749567032773,-500.0,0.00021094,2]
[365256590,1749567032783,-500.0,0.00021094,2]
[365256591,1749567032794,-500.0,0.00021094,2]
[365256592,1749567032803,-500.0,0.00021094,2]
[365256593,1749567032813,-500.0,0.00021094,2]
[365256594,1749567032823,-500.0,0.00021094,2]
[365256595,1749567032834,-474.40491937,0.00021094,2]
[365256596,1749567032845,-262.47901835,0.00021095,4]
[365256597,1749567032855,-173.14647506,0.00021095,4]
[365256598,1749567032865,-401.54003609,0.00021095,4]
[365256599,1749567032874,-192.25222457,0.00021095,4]
[365256600,1749567032883,-440.0,0.00021095,4]
[365256601,1749567032893,-440.0,0.00021095,4]
[365256602,1749567032902,-523.40343044,0.00021095,4]
[365256603,1749567032913,-310.0,0.00021095,4]
[365256604,1749567032922,-440.0,0.00021095,4]
[365256605,1749567032932,-460.0,0.00021095,4]
[365256606,1749567032942,-439.2211437,0.00021095,4]
[365256607,1749567032952,-474.42881578,0.00021095,4]
[365256608,1749567032964,-430.0,0.00021095,4]
[365256609,1749567032973,-440.0,0.00021095,4]
[365256610,1749567032983,-440.0,0.00021095,4]
[365256611,1749567032994,-354.67245438,0.00021095,4]
[365256612,1749567033004,-430.0,0.00021095,4]
[365256613,1749567033014,-440.0,0.00021095,4]
[365256614,1749567033024,-234.4739206,0.00021095,4]
[365256615,1749567033034,-460.0,0.00021095,4]
[365256616,1749567033044,-460.0,0.00021095,4]
[365256617,1749567033055,-460.0,0.00021095,4]
[365256618,1749567033064,-440.0,0.00021095,4]
[365256619,1749567033074,-430.0,0.00021095,4]
[365256620,1749567033085,-460.0,0.00021095,4]
[365256621,1749567033095,-440.0,0.00021095,4]
[365256622,1749567033106,-440.0,0.00021095,4]
[365256623,1749567033116,-440.0,0.00021095,4]
[365256624,1749567033127,-440.0,0.00021095,4]
[365256625,1749567033136,-440.0,0.00021095,4]
[365256626,1749567033147,-440.0,0.00021095,4]
[365256627,1749567033157,-430.0,0.00021095,4]
[365256628,1749567033167,-440.0,0.00021095,4]
[365256629,1749567033176,-430.0,0.00021095,4]
[365256630,1749567033186,-430.0,0.00021095,4]
[365256631,1749567033197,-430.0,0.00021095,4]
[365256632,1749567033207,-460.0,0.00021095,4]
[365256633,1749567033217,-436.56678842,0.00021095,4]
[365256634,1749567033226,-460.0,0.00021095,4]
[365256635,1749567033239,-460.0,0.00021095,4]
[365256636,1749567033251,-430.0,0.00021095,4]
[365256637,1749567033261,-500.0,0.00021095,4]
[365256638,1749567033271,-440.0,0.00021095,4]
[365256639,1749567033281,-500.0,0.00021095,4]
[365256640,1749567033293,-500.0,0.00021095,4]
[365256641,1749567033303,-460.0,0.00021095,4]
[365256642,1749567033313,-440.0,0.00021095,4]
[365256643,1749567033324,-460.0,0.00021095,4]
[365256644,1749567033334,-440.0,0.00021095,4]
[365256645,1749567033343,-460.0,0.00021095,4]
[365256646,1749567033353,-430.0,0.00021095,4]
[365256647,1749567033363,-440.0,0.00021095,4]
[365256648,1749567033373,-440.0,0.00021095,4]
[365256649,1749567033383,-440.0,0.00021095,4]
[365256650,1749567033393,-430.0,0.00021095,4]
[365256651,1749567033403,-460.0,0.00021095,4]
[365256652,1749567033412,-460.0,0.00021095,4]
[365256653,1749567033422,-460.0,0.00021095,4]
[365256654,1749567033432,-292.34601701,0.00021095,4]
[365256655,1749567033442,-460.0,0.00021095,4]
[365256656,1749567033452,-460.0,0.00021095,4]
[365256657,1749567033462,-460.0,0.00021095,4]
[365256658,1749567033472,-460.0,0.00021095,4]
[365256659,1749567033482,-430.0,0.00021095,4]
[365256660,1749567033494,-293.36145177,0.00021095,4]
[365256661,1749567033503,-460.0,0.00021095,4]
[365256662,1749567033513,-440.0,0.00021095,4]
[365256663,1749567033523,-440.0,0.00021095,4]
[365256664,1749567033533,-460.0,0.00021095,4]
[365256665,1749567033543,-460.0,0.00021095,4]
[365256666,1749567033553,-460.0,0.00021095,4]
[365256667,1749567033562,-500.0,0.00021095,4]
[365256668,1749567033573,-460.0,0.00021095,4]
[365256669,1749567033582,-440.0,0.00021095,4]
[365256670,1749567033592,-420.0,0.00021095,4]
[365256671,1749567033603,-440.0,0.00021095,4]
[365256672,1749567033612,-430.0,0.00021095,4]
[365256673,1749567033622,-430.0,0.00021095,4]
[365256674,1749567033632,-430.2739647,0.00021095,4]
[365256675,1749567033643,-440.0,0.00021095,4]
[365256676,1749567033652,-430.0,0.00021095,4]
[365256677,1749567033662,-291.74770479,0.00021095,4]
[365256678,1749567033672,-460.0,0.00021095,4]
[365256679,1749567033682,-430.0,0.00021095,4]
[365256680,1749567033691,-460.0,0.00021095,4]
[365256681,1749567033701,-440.0,0.00021095,4]
[365256682,1749567033710,-440.0,0.00021095,4]
[365256683,1749567033720,-430.0,0.00021095,4]
[365256684,1749567033729,-440.0,0.00021095,4]
[365256685,1749567033741,-440.0,0.00021095,4]
[365256686,1749567033750,-136.93474813,0.00021095,4]
[365256687,1749567033765,-293.06525187,0.00021095,4]
[365256688,1749567033775,-440.0,0.00021095,4]
[365256689,1749567033785,-460.0,0.00021095,4]
[365256690,1749567033794,-460.0,0.00021095,4]
[365256691,1749567033804,-88.33505023,0.00021095,4]
[365256742,1749567038274,-341.66494977,0.00021095,4]
[365256743,1749567038284,-445.22036415,0.00021095,4]
[365256744,1749567038294,-440.0,0.00021095,4]
[365256745,1749567038304,-440.0,0.00021095,4]
[365256746,1749567038313,-440.0,0.00021095,4]
[365256747,1749567038323,-430.0,0.00021095,4]
[365256748,1749567038334,-440.0,0.00021095,4]
[365256749,1749567038344,-292.15703517,0.00021095,4]
[365256750,1749567038354,-430.0,0.00021095,4]
[365256751,1749567038363,-440.0,0.00021095,4]
[365256752,1749567038372,-460.0,0.00021095,4]
[365256753,1749567038382,-430.0,0.00021095,4]
[365256755,1749567038391,-440.0,0.00021095,4]
[365256757,1749567038400,-430.0,0.00021095,4]
[365256758,1749567038409,-430.0,0.00021095,4]
[365256759,1749567038419,-386.95839099,0.00021095,4]
[365256760,1749567038428,-229.03047804,0.00021095,4]
[365256761,1749567038438,-440.0,0.00021095,4]
[365256762,1749567038450,-460.0,0.00021095,4]
[365256763,1749567038464,-440.0,0.00021095,4]
[365256764,1749567038474,-460.0,0.00021095,4]
[365256765,1749567038483,-430.0,0.00021095,4]
[365256766,1749567038496,-430.0,0.00021095,4]
[365256767,1749567038505,-430.0,0.00021095,4]
[365256768,1749567038514,-460.0,0.00021095,4]
[365256769,1749567038524,-430.0,0.00021095,4]
[365256770,1749567038534,-440.0,0.00021095,4]
[365256771,1749567038552,-270.0,0.00021095,4]
[365256772,1749567038561,-430.0,0.00021095,4]
[365256773,1749567038571,-440.0,0.00021095,4]
[365256774,1749567038581,-440.0,0.00021095,4]
[365256775,1749567038590,-488.43621285,0.00021095,4]
[365256776,1749567038600,-474.55896577,0.00021095,4]
[365256777,1749567038609,-500.0,0.00021095,4]
[365256778,1749567038619,-440.0,0.00021095,4]
[365256779,1749567038628,-440.0,0.00021095,4]
[365256780,1749567038638,-430.0,0.00021095,4]
[365256781,1749567038647,-430.0,0.00021095,4]
[365256782,1749567038657,-430.0,0.00021095,4]
[365256783,1749567038667,-440.0,0.00021095,4]
[365256784,1749567038676,-430.0,0.00021095,4]
[365256785,1749567038686,-460.0,0.00021095,4]
[365256786,1749567038695,-430.0,0.00021095,4]
[365256787,1749567038704,-460.0,0.00021095,4]
[365256788,1749567038713,-200.09972868,0.00021095,4]
[365256789,1749567038722,-440.0,0.00021095,4]
[365256790,1749567038732,-460.0,0.00021095,4]
[365256791,1749567038742,-440.0,0.00021095,4]
[365256792,1749567038752,-430.0,0.00021095,4]
[365256793,1749567038761,-432.58443979,0.00021095,4]
[365256794,1749567038771,-430.0,0.00021095,4]
[365256795,1749567038781,-460.0,0.00021095,4]
[365256796,1749567038790,-430.0,0.00021095,4]
[365256797,1749567038800,-410.0,0.00021095,4]
[365256798,1749567038810,-440.0,0.00021095,4]
[365256799,1749567038820,-460.0,0.00021095,4]
[365256800,1749567038830,-440.0,0.00021095,4]
[365256801,1749567038840,-460.0,0.00021095,4]